bitfinex/quotes_SOLUSD_20251115
["timestamp","ask_amount","ask_price","bid_price","bid_amount"]
[1763212894256,0.69,142.01,141.98,61.87]
[1763212894460,3.37907563,142.01,141.98,61.87]
[1763212895365,3.37907563,142.01,141.98,61.2]
[1763212895542,2.68907563,142.01,141.98,61.2]
[1763212895858,9.78882769,142.04,141.99,0.67]
[1763212896062,2.68907563,142.03,141.99,0.67]
[1763212896476,2.68907563,142.08,141.99,0.67]
[1763212896477,50.0,142.12,142.01,2.68907563]
[1763212896770,2.68907563,142.07,142.02,2.68907563]
[1763212897068,2.68907563,142.06,142.0,0.67]
[1763212897272,0.69,142.07,142.0,7.71206116]
[1763212897506,0.69,142.07,142.0,0.67]
[1763212897678,21.16476771,142.12,142.06,2.68907563]
[1763212897866,0.69,142.12,142.07,3.35907563]
[1763212898263,0.69,142.12,142.08,0.67]
[1763212898578,2.68907563,142.12,142.08,0.67]
[1763212898953,2.68907563,142.12,142.08,3.35907563]
[1763212899163,0.2,142.13,142.09,0.67]
[1763212899365,3.37907563,142.12,142.09,0.67]
[1763212899578,2.68907563,142.11,142.07,0.67]
[1763212900088,3.37907563,142.11,142.07,0.67]
[1763212900270,0.69,142.12,142.07,3.35907563]
[1763212900581,3.37907563,142.12,142.07,3.35907563]
[1763212900767,3.37907563,142.12,142.08,0.67]
[1763212901375,0.2,142.13,142.04,2.68907563]
[1763212901376,2.68907563,142.09,142.04,2.68907563]
[1763212901580,2.68907563,142.09,142.04,3.35907563]
[1763212901782,3.37907563,142.09,142.05,0.67]
[1763212902576,0.2,142.13,142.05,3.35907563]
[1763212902577,2.68907563,142.1,142.05,3.35907563]
[1763212902778,0.2,142.13,142.07,2.68907563]
[1763212903080,2.88907563,142.13,142.08,2.68907563]
[1763212903378,3.56907563,142.13,142.08,64.54907563]
[1763212903583,0.88,142.13,142.09,0.66]
[1763212903766,3.36907563,142.12,142.08,61.2]
[1763212903960,2.68907563,142.11,142.07,61.86]
[1763212904279,3.36907563,142.11,142.08,0.66]
[1763212904584,0.2,142.13,142.08,0.66]
[1763212904769,2.68907563,142.12,142.08,3.34907563]
[1763212905085,2.68907563,142.12,142.08,0.66]
[1763212905263,3.36907563,142.12,142.08,0.66]
[1763212905661,0.2,142.13,142.07,63.88907563]
[1763212905867,0.68,142.11,142.07,64.54907563]
[1763212906083,3.36907563,142.11,142.07,64.54907563]
[1763212906262,2.68907563,142.11,142.08,0.66]
[1763212907285,0.2,142.13,142.08,61.86]
[1763212907497,2.88907563,142.13,142.09,3.34907563]
[1763212907786,0.2,142.13,142.09,0.66]
[1763212908162,2.88907563,142.13,142.09,3.34907563]
[1763212908364,0.2,142.13,142.09,3.34907563]
[1763212908564,2.88907563,142.13,142.1,0.66]
[1763212908782,2.88907563,142.13,142.1,61.86]
[1763212908975,0.2,142.13,142.1,61.86]
[1763212909178,0.2,142.13,142.11,0.66]
[1763212909379,0.2,142.13,142.11,61.2]
[1763212909691,0.2,142.13,142.11,61.86]
[1763212910191,0.2,142.13,142.12,0.66]
[1763212910396,0.2,142.13,142.11,61.2]
[1763212910770,2.88907563,142.13,142.11,61.2]
[1763212910989,0.2,142.13,142.11,61.86]
[1763212911185,0.2,142.13,142.11,61.2]
[1763212911383,0.2,142.13,142.12,0.66]
[1763212911779,0.2,142.13,142.12,61.86]
[1763212912886,0.2,142.13,142.12,63.57419242]
[1763212913387,0.2,142.13,142.12,61.86]
[1763212913705,0.2,142.13,142.12,61.2]
[1763212913993,2.59419242,142.13,142.1,61.2]
[1763212914382,1.71419242,142.12,142.1,61.2]
[1763212915092,2.59419242,142.13,142.1,61.2]
[1763212915592,0.88,142.13,142.1,61.2]
[1763212915793,2.59419242,142.13,142.1,61.86]
[1763212916094,0.68,142.12,142.1,61.2]
[1763212916482,0.2,142.13,142.1,61.2]
[1763212916684,2.59419242,142.13,142.1,61.2]
[1763212916994,2.59419242,142.13,142.1,61.86]
[1763212917179,1.91419242,142.13,142.1,61.86]
[1763212917381,0.88,142.13,142.1,61.2]
[1763212918076,2.59419242,142.13,142.1,61.2]
[1763212918279,0.88,142.13,142.1,61.2]
[1763212918500,0.2,142.13,142.1,61.86]
[1763212918690,1.91419242,142.13,142.1,61.86]
[1763212918894,0.2,142.13,142.1,61.86]
[1763212919099,0.2,142.13,142.11,2.37419242]
[1763212919286,0.2,142.13,142.12,1.71419242]
[1763212919482,0.2,142.13,142.12,2.37419242]
[1763212919687,0.2,142.13,142.12,0.66]
[1763212920780,0.2,142.13,142.1,63.57419242]
[1763212921002,0.2,142.13,142.11,0.66]
[1763212921489,0.2,142.13,142.11,2.37419242]
[1763212921684,0.2,142.13,142.11,0.66]
[1763212921884,0.2,142.13,142.12,0.66]
[1763212922396,0.2,142.13,142.11,1.71419242]
[1763212922601,0.2,142.13,142.11,2.37419242]
[1763212922800,0.2,142.13,142.12,0.66]
[1763212923784,0.2,142.13,142.12,7.69630734]
[1763212923993,0.2,142.13,142.12,9.41049976]
[1763212924499,0.2,142.13,142.12,2.37419242]
[1763212924690,2.39419242,142.16,142.13,61.0]
[1763212925283,2.39419242,142.16,142.13,61.66]
[1763212925284,1.71419242,142.16,142.13,61.66]
[1763212925488,0.68,142.17,142.13,61.66]
[1763212925895,2.39419242,142.17,142.13,61.66]
[1763212926291,0.68,142.16,142.13,61.0]
[1763212926614,1.71419242,142.15,142.13,61.0]
[1763212926818,1.71419242,142.14,142.13,61.0]
[1763212927415,2.39419242,142.14,142.13,61.0]
[1763212929402,2.39419242,142.14,142.05,83.6512]
[1763212929604,1.71419242,142.08,142.04,0.66]
[1763212930082,1.71419242,142.08,142.04,2.37419242]
[1763212930386,2.39419242,142.09,142.05,0.66]
[1763212930582,1.71419242,142.1,142.06,1.71419242]
[1763212930803,1.71419242,142.1,142.06,0.66]
[1763212930988,2.39419242,142.1,142.06,0.66]
[1763212931385,1.71419242,142.1,142.01,21.2]
[1763212931602,2.37419242,142.09,142.04,2.38419242]
[1763212931884,2.37419242,142.09,142.03,1.71419242]
[1763212931885,1.71419242,142.08,142.03,1.71419242]
[1763212932189,1.71419242,142.06,142.02,0.67]
[1763212932806,1.71419242,142.06,142.02,2.38419242]
[1763212932807,2.37419242,142.06,142.02,2.38419242]
[1763212933002,0.66,142.06,142.02,0.67]
[1763212933205,2.37419242,142.06,142.02,0.67]
[1763212933595,2.41419242,142.06,142.02,0.67]
[1763212934324,22.6512,142.09,141.99,2.41419242]
[1763212934325,1.71419242,142.04,141.99,2.41419242]
[1763212934636,0.7,142.05,141.96,0.7]
[1763212934639,1.71419242,142.0,141.96,0.7]
[1763212934978,1.71419242,141.98,141.94,0.7]
[1763212935177,1.71419242,141.98,141.92,7.04622322]
[1763212935427,2.41419242,141.97,141.92,1.71419242]
[1763212935713,1.71419242,141.96,141.92,0.7]
[1763212935881,2.41419242,141.96,141.92,0.7]
[1763212936297,1.71419242,141.96,141.92,0.7]
[1763212936503,1.71419242,141.97,141.92,2.41419242]
[1763212937007,2.41419242,141.97,141.93,0.7]
[1763212937183,0.7,141.97,141.93,0.7]
[1763212937503,1.71419242,141.94,141.89,2.51419242]
[1763212937881,32.44002769,141.99,141.9,0.7]
[1763212938104,1.71419242,141.93,141.89,0.1]
[1763212938408,1.71419242,141.93,141.89,0.8]
[1763212938908,2.41419242,141.93,141.89,0.8]
[1763212939104,1.71419242,141.93,141.89,0.8]
[1763212939306,32.44002769,141.99,141.9,1.71419242]
[1763212939307,0.7,141.98,141.9,1.71419242]
[1763212939608,1.71419242,141.96,141.91,2.41419242]
[1763212940014,1.71419242,141.96,141.92,0.7]
[1763212940310,2.41419242,141.96,141.92,0.7]
[1763212940506,22.6512,141.99,141.92,0.7]
[1763212940696,1.71419242,141.96,141.92,0.7]
[1763212941412,2.41419242,141.96,141.92,0.7]
[1763212943014,1.71419242,141.96,141.92,0.7]
[1763212943210,1.71419242,141.97,141.92,2.41419242]
[1763212943395,1.71419242,141.96,141.92,0.7]
[1763212943796,1.71419242,141.95,141.92,0.7]
[1763212943995,2.41419242,141.96,141.92,0.7]
[1763212944203,1.71419242,141.96,141.92,0.7]
[1763212944513,1.71419242,141.97,141.93,1.71419242]
[1763212944824,1.71419242,141.98,141.93,1.71419242]
[1763212945043,0.7,142.01,141.95,1.71419242]
[1763212945228,2.41419242,142.01,141.96,1.71419242]
[1763212945391,1.71419242,141.99,141.95,62.1]
[1763212945813,2.41419242,141.99,141.95,62.1]
[1763212946026,2.41419242,141.99,141.96,0.7]
[1763212946596,10.48882769,142.01,141.96,0.7]
[1763212946798,1.71419242,141.99,141.96,0.7]
[1763212946998,1.71419242,141.99,141.95,61.4]
[1763212947214,0.7,141.99,141.95,62.1]
[1763212947524,2.41419242,141.98,141.95,61.4]
[1763212949230,1.71419242,141.98,141.95,61.4]
[1763212949442,1.71419242,141.99,141.96,0.7]
[1763212949614,2.41419242,142.0,141.96,0.7]
[1763212950011,1.71419242,142.0,141.96,2.41419242]
[1763212950221,1.71419242,142.01,141.96,63.81419242]
[1763212950417,1.71419242,142.0,141.96,63.81419242]
[1763212950618,2.41419242,142.01,141.97,0.7]
[1763212952302,1.71419242,142.01,141.97,0.7]
[1763212952934,1.71419242,142.0,141.97,0.7]
[1763212953303,2.41419242,142.01,141.97,0.7]
[1763212954026,2.41419242,142.01,141.97,63.81419242]
[1763212954201,2.41419242,142.01,141.97,62.1]
[1763212955029,2.41419242,142.01,141.97,63.81419242]
[1763212956107,2.41419242,142.01,141.97,62.1]
[1763212957935,2.41419242,142.01,141.98,0.7]
[1763212958228,2.41419242,142.0,141.98,61.4]
[1763212958440,2.41419242,141.99,141.98,61.4]
[1763212958609,2.41419242,141.99,141.95,61.4]
[1763212958927,1.71419242,141.96,141.95,61.4]
[1763212959441,2.41419242,141.97,141.95,61.4]
[1763212959904,0.7,141.96,141.95,61.4]
[1763212960729,1.71419242,141.97,141.95,61.4]
[1763212961027,2.41419242,141.97,141.95,61.4]
[1763212961229,0.7,141.96,141.95,61.4]
[1763212961430,2.41419242,141.96,141.93,61.4]
[1763212961627,0.7,141.96,141.93,61.4]
[1763212961819,2.41419242,141.96,141.93,61.4]
[1763212962618,2.41419242,141.96,141.93,62.1]
[1763212962834,2.41419242,141.96,141.93,61.4]
[1763212963137,1.71419242,141.98,141.94,0.7]
[1763212963316,1.71419242,141.98,141.94,62.1]
[1763212963523,2.36419242,141.98,141.94,62.1]
[1763212964326,1.71419242,141.99,141.95,0.7]
[1763212964530,1.71419242,141.99,141.95,62.1]
[1763212964734,2.36419242,141.99,141.95,62.1]
[1763212964928,2.36419242,141.99,141.96,0.7]
[1763212965130,1.71419242,141.99,141.96,0.7]
[1763212965539,2.36419242,141.99,141.96,0.7]
[1763212966438,2.36419242,141.98,141.95,61.4]
[1763212966636,1.71419242,141.97,141.93,61.4]
[1763212966834,1.71419242,141.96,141.93,61.4]
[1763212967036,2.36419242,141.96,141.93,61.4]
[1763212967233,1.71419242,141.94,141.93,61.4]
[1763212967423,1.71419242,141.94,141.9,61.4]
[1763212967627,2.36419242,141.93,141.9,61.4]
[1763212967825,2.36419242,141.93,141.89,0.8]
[1763212968021,2.36419242,141.92,141.89,0.1]
[1763212968632,1.71419242,141.93,141.89,0.8]
[1763212968825,2.36419242,141.94,141.89,2.51419242]
[1763212969224,0.65,141.94,141.9,0.7]
[1763212969522,1.71419242,141.95,141.9,2.41419242]
[1763212969727,0.65,141.96,141.9,2.41419242]
[1763212969935,1.71419242,141.95,141.91,0.7]
[1763212970420,0.65,141.96,141.91,2.41419242]
[1763212970421,1.71419242,141.96,141.91,2.41419242]
[1763212970834,1.71419242,141.96,141.92,0.7]
[1763212970835,2.36419242,141.96,141.92,0.7]
[1763212971529,2.36419242,141.96,141.92,62.1]
[1763212972848,3.33625015,141.96,141.92,62.1]
[1763212973547,3.33625015,141.96,141.93,0.7]
[1763212973750,3.33625015,141.96,141.93,61.4]
[1763212975454,22.6512,141.99,141.93,61.4]
[1763212975641,2.68625015,141.97,141.94,0.7]
[1763212975846,2.68625015,141.95,141.89,3.48625015]
[1763212976048,2.68625015,141.93,141.89,0.8]
[1763212976249,2.68625015,141.93,141.89,3.48625015]
[1763212976726,2.68625015,141.93,141.9,0.7]
[1763212977238,3.33625015,141.94,141.9,0.7]
[1763212977747,3.33625015,141.94,141.9,3.38625015]
[1763212978056,10.43882769,141.96,141.9,3.38625015]
[1763212978376,2.68625015,141.95,141.91,0.7]
[1763212978874,3.33625015,141.95,141.91,0.7]
[1763212979076,2.68625015,141.94,141.91,0.7]
[1763212979241,3.33625015,141.94,141.91,0.7]
[1763212979855,3.33625015,141.94,141.89,2.78625015]
[1763212979856,2.68625015,141.93,141.89,2.78625015]
[1763212980034,2.68625015,141.93,141.9,0.7]
[1763212980236,3.33625015,141.92,141.89,0.1]
[1763212980462,0.65,141.95,141.9,0.7]
[1763212980639,2.68625015,141.93,141.9,0.7]
[1763212981156,2.68625015,141.94,141.9,0.7]
[1763212981365,2.68625015,141.93,141.9,0.7]
[1763212982062,3.33625015,141.93,141.89,0.1]
[1763212982241,3.33625015,141.93,141.9,0.7]
[1763212982242,2.68625015,141.93,141.9,0.7]
[1763212982961,2.68625015,141.93,141.89,0.1]
[1763212983149,3.33625015,141.93,141.89,0.8]
[1763212983459,0.65,141.93,141.89,3.48625015]
[1763212983662,0.65,141.93,141.89,64.88625015]
[1763212983848,0.65,141.93,141.89,64.18625015]
[1763212984047,2.68625015,141.95,141.91,2.68625015]
[1763212984260,2.68625015,141.95,141.9,3.38625015]
[1763212984439,23.7386493,142.02,141.93,2.68625015]
[1763212984440,3.33625015,141.98,141.93,2.68625015]
[1763212984763,3.33625015,141.98,141.93,64.78625015]
[1763212984963,0.65,141.97,141.93,61.4]
[1763212985280,2.68625015,141.96,141.93,61.4]
[1763212985444,23.3012,141.98,141.94,0.7]
[1763212985643,25.98745015,141.98,141.94,0.7]
[1763212985956,2.68625015,141.99,141.94,3.38625015]
[1763212986340,22.6512,141.98,141.95,0.7]
[1763212986951,25.33745015,141.98,141.95,0.7]
[1763212989252,25.33745015,141.98,141.95,62.1]
[1763212989651,23.3012,141.98,141.95,61.4]
[1763212989865,25.98745015,141.98,141.95,61.4]
[1763212991565,22.6512,141.98,141.95,62.1]
[1763212991870,22.6512,141.98,141.96,0.7]
[1763212992059,2.68625015,142.0,141.96,64.78625015]
[1763212992572,2.68625015,142.02,141.97,3.38625015]
[1763212992748,2.68625015,142.02,141.97,64.78625015]
[1763212992957,3.36625015,142.02,141.98,0.69]
[1763212995375,9.78882769,142.04,141.97,62.09]
[1763212995376,2.68625015,142.0,141.97,62.09]
[1763212995679,2.68625015,142.02,141.98,0.69]
[1763212995883,3.36625015,142.02,141.98,0.69]
[1763212996859,3.36625015,142.02,141.98,3.37625015]
[1763212997079,2.68625015,142.02,141.98,64.77625015]
[1763212997370,2.68625015,142.03,141.99,3.37625015]
[1763212997593,2.68625015,142.03,141.99,0.69]
[1763212997594,2.68625015,142.02,141.99,0.69]
[1763212998263,0.68,142.06,142.01,2.68625015]
[1763212998575,2.68625015,142.05,142.02,0.69]
[1763212999079,3.36625015,142.05,142.02,0.69]
[1763213000873,35.12627784,142.07,142.02,3.37625015]
[1763213001072,2.68625015,142.07,142.03,2.68625015]
[1763213001272,3.36625015,142.09,142.04,2.68625015]
[1763213001568,25.33745015,142.09,142.04,64.77625015]
[1763213001880,25.33745015,142.09,142.05,0.69]
[1763213001881,26.01745015,142.09,142.05,0.69]
[1763213002285,18.7037003,142.09,142.05,0.69]
[1763213002485,18.7037003,142.09,142.05,62.09]
[1763213002486,2.68625015,142.09,142.05,62.09]
[1763213002674,13.15507784,142.08,142.04,0.69]
[1763213003067,3.36625015,142.08,142.04,0.69]
[1763213003590,17.6,142.1,142.04,0.69]
[1763213003891,2.68625015,142.08,142.04,0.69]
[1763213004384,0.68,142.09,142.01,68.44162546]
[1763213004385,2.68625015,142.06,142.02,3.37625015]
[1763213004586,3.36625015,142.07,142.02,64.77625015]
[1763213004786,32.44002769,142.09,142.03,3.37625015]
[1763213004787,2.68625015,142.08,142.03,3.37625015]
[1763213005298,3.36625015,142.08,142.04,0.69]
[1763213006185,22.6512,142.09,142.02,61.4]
[1763213006362,3.36625015,142.07,142.03,0.69]
[1763213006564,2.68625015,142.07,142.03,3.37625015]
[1763213006870,2.68625015,142.07,142.04,0.69]
[1763213007386,0.68,142.08,142.04,0.69]
[1763213007387,2.68625015,142.08,142.04,3.37625015]
[1763213007587,3.36625015,142.09,142.04,3.37625015]
[1763213007780,0.68,142.12,142.06,2.68625015]
[1763213008091,2.68625015,142.12,142.07,3.37625015]
[1763213008269,2.68625015,142.12,142.07,64.77625015]
[1763213008470,2.68625015,142.12,142.08,0.69]
[1763213008769,3.36625015,142.12,142.08,0.69]
[1763213009367,1.50996046,142.12,142.08,0.69]
[1763213009588,2.68625015,142.11,142.07,64.08625015]
[1763213009792,3.36625015,142.11,142.07,64.08625015]
[1763213009968,3.36625015,142.1,142.07,61.4]
[1763213010393,3.36625015,142.1,142.07,62.09]
[1763213011304,2.68625015,142.09,142.07,61.4]
[1763213011692,3.36625015,142.1,142.07,62.09]
[1763213011878,3.36625015,142.1,142.07,61.4]
[1763213012074,2.68625015,142.09,142.07,61.4]
[1763213012297,0.68,142.09,142.07,61.4]
[1763213012507,2.68625015,142.09,142.07,61.4]
[1763213012789,3.36625015,142.08,142.03,0.69]
[1763213012988,2.68625015,142.06,142.03,62.09]
[1763213013997,0.68,142.07,142.04,0.69]
[1763213013998,2.68625015,142.07,142.04,0.69]
[1763213014207,2.68625015,142.08,142.04,0.69]
[1763213014409,2.68625015,142.07,142.03,61.4]
[1763213014710,9.78882769,142.0,141.83,1.99999999]
[1763213015003,2.68625015,141.94,141.91,0.69]
[1763213015182,2.68625015,141.93,141.91,0.69]
[1763213015583,3.36625015,141.96,141.91,0.69]
[1763213015584,2.68625015,141.94,141.91,0.69]
[1763213016078,32.44002769,141.97,141.91,0.69]
[1763213016400,2.68625015,141.95,141.91,0.69]
[1763213016698,2.68625015,141.95,141.91,7.73671438]
[1763213016996,6.65179849,141.97,141.92,6.65179849]
[1763213017306,6.65179849,142.0,141.94,6.65179849]
[1763213017483,23.3312,142.01,141.94,6.65179849]
[1763213017693,6.65179849,142.0,141.95,0.69]
[1763213017900,6.65179849,141.99,141.95,0.69]
[1763213018406,6.65179849,142.0,141.95,0.69]
[1763213018697,6.65179849,141.99,141.95,0.69]
[1763213018874,6.65179849,141.99,141.95,7.34179849]
[1763213019482,6.65179849,141.99,141.95,0.69]
[1763213019680,6.65179849,141.99,141.96,0.69]
[1763213020109,6.65179849,141.99,141.96,61.4]
[1763213020287,6.65179849,141.99,141.96,62.09]
[1763213020673,6.65179849,141.98,141.96,61.4]
[1763213020881,6.65179849,141.97,141.92,61.4]
[1763213021078,6.65179849,141.97,141.93,0.69]
[1763213023403,6.65179849,141.97,141.92,68.05179849]
[1763213023404,6.65179849,141.95,141.91,0.71]
[1763213024107,0.66,141.98,141.91,0.71]
[1763213024296,6.65179849,141.95,141.91,0.71]
[1763213025312,7.31179849,141.95,141.91,0.71]
[1763213025808,6.65179849,141.95,141.91,62.11]
[1763213026187,6.65179849,141.94,141.91,61.4]
[1763213026403,7.31179849,141.94,141.91,61.4]
[1763213026597,6.65179849,141.92,141.91,61.4]
[1763213027104,7.31179849,141.93,141.91,61.4]
[1763213027897,0.66,141.95,141.91,61.4]
[1763213028107,9.78882769,141.94,141.91,62.11]
[1763213028614,16.44062618,141.94,141.91,62.11]
[1763213029586,9.78882769,141.94,141.91,62.11]
[1763213029893,16.44062618,141.94,141.91,62.11]
[1763213030897,6.65179849,141.94,141.91,62.11]
[1763213031210,6.65179849,141.92,141.91,61.4]
[1763213031393,6.65179849,141.92,141.89,61.5]
[1763213031596,6.65179849,141.9,141.89,61.5]
[1763213034215,6.65179849,141.91,141.89,61.5]
[1763213034598,7.31179849,141.91,141.89,61.5]
[1763213034918,4.84174281,141.91,141.89,61.5]
[1763213035412,13.9705705,141.92,141.89,62.21]
[1763213036300,14.6305705,141.92,141.89,62.21]
[1763213036710,4.18174281,141.91,141.89,61.5]
[1763213037518,4.18174281,141.9,141.89,61.5]
[1763213037718,4.84174281,141.9,141.89,61.5]
[1763213038013,14.6305705,141.9,141.89,61.5]
[1763213038401,9.78882769,141.9,141.89,61.5]
[1763213038710,13.9705705,141.92,141.89,62.21]
[1763213038896,11.50902839,141.92,141.89,62.21]
[1763213039096,1.7202007,141.91,141.89,62.21]
[1763213039414,1.7202007,141.91,141.89,61.5]
[1763213040695,24.3714007,141.93,141.9,0.71]
[1763213040918,9.78882769,141.92,141.9,0.71]
[1763213041217,11.50902839,141.92,141.9,0.71]
[1763213041512,9.78882769,141.92,141.9,0.71]
[1763213042001,9.78882769,141.92,141.9,61.4]
[1763213042002,2.3802007,141.91,141.9,61.4]
[1763213042610,32.44002769,141.9,141.89,0.1]
[1763213042809,34.82022839,141.9,141.89,0.1]
[1763213044102,36.54042909,141.9,141.89,0.1]
[1763213044322,41.70103119,141.9,141.89,0.1]
[1763213044619,41.70103119,141.9,141.86,0.2]
[1763213044620,32.44002769,141.87,141.86,0.2]
[1763213044809,34.16022839,141.87,141.84,0.1]
[1763213045003,11.50902839,141.85,141.84,0.1]
[1763213045399,12.16902839,141.85,141.84,0.1]
[1763213045601,9.78882769,141.85,141.84,0.1]
[1763213046005,11.50902839,141.85,141.84,0.1]
[1763213046422,12.16902839,141.85,141.84,0.1]
[1763213047108,9.78882769,141.85,141.84,0.81]
[1763213047428,11.50902839,141.85,141.84,0.1]
[1763213048719,9.78882769,141.85,141.84,0.1]
[1763213049312,9.78882769,141.85,141.84,0.81]
[1763213050232,1.7202007,141.88,141.84,62.21]
[1763213050525,1.7202007,141.89,141.85,0.71]
[1763213050729,22.6512,141.92,141.85,2.4302007]
[1763213050932,4.18187761,141.87,141.84,61.5]
[1763213051131,4.18187761,141.87,141.84,0.1]
[1763213051323,4.18187761,141.88,141.85,0.71]
[1763213051738,9.78882769,141.87,141.85,0.71]
[1763213052631,4.18187761,141.89,141.85,0.71]
[1763213052836,9.78882769,141.89,141.85,4.89187761]
[1763213053015,4.18187761,141.9,141.85,4.89187761]
[1763213053331,4.18187761,141.91,141.86,4.86187761]
[1763213053522,9.78882769,141.9,141.86,4.86187761]
[1763213053724,9.78882769,141.9,141.87,0.68]
[1763213055341,9.78882769,141.91,141.87,4.86187761]
[1763213055636,9.78882769,141.91,141.88,0.68]
[1763213057445,9.78882769,141.92,141.88,66.26187761]
[1763213057663,9.78882769,141.92,141.89,0.68]
[1763213058521,4.18187761,141.93,141.89,0.68]
[1763213058840,9.78882769,141.94,141.9,4.18187761]
[1763213059040,9.78882769,141.94,141.91,0.68]
[1763213059921,4.18187761,141.95,141.91,66.26187761]
[1763213059922,9.78882769,141.95,141.91,66.26187761]
[1763213060122,9.78882769,141.95,141.91,65.58187761]
[1763213060428,9.78882769,141.96,141.92,4.18187761]
[1763213062140,9.78882769,141.96,141.93,0.68]
[1763213062344,9.78882769,141.96,141.93,62.08]
[1763213062743,4.18187761,141.96,141.93,61.4]
[1763213063059,4.88187761,141.96,141.93,61.4]
[1763213063230,4.18187761,141.96,141.93,62.08]
[1763213064449,4.18187761,141.95,141.93,61.4]
[1763213064859,0.7,141.96,141.93,62.08]
[1763213065046,4.18187761,141.95,141.93,62.08]
[1763213066058,4.18187761,141.95,141.93,61.4]
[1763213066454,4.18187761,141.95,141.93,62.08]
[1763213068241,13.9707053,141.96,141.93,62.08]
[1763213069159,14.6707053,141.96,141.93,62.08]
[1763213069568,9.78882769,141.94,141.93,61.4]
[1763213070745,9.78882769,141.94,141.93,62.08]
[1763213072457,9.78882769,141.96,141.93,0.68]
[1763213072963,9.78882769,141.97,141.94,1.71932296]
[1763213073145,9.78882769,141.97,141.93,2.39932296]
[1763213073482,11.50815065,141.97,141.93,2.39932296]
[1763213073651,11.50815065,141.97,141.94,0.68]
[1763213074360,9.78882769,141.97,141.94,0.68]
[1763213076751,9.78882769,141.97,141.94,2.39932296]
[1763213077256,9.78882769,141.97,141.92,68.4461505]
[1763213077563,9.78882769,141.97,141.94,0.68]
[1763213078266,11.50815065,141.97,141.94,0.68]
[1763213078466,9.78882769,141.97,141.94,0.68]
[1763213079666,11.50815065,141.97,141.94,0.68]
[1763213080067,11.50815065,141.97,141.94,62.08]
[1763213080068,12.20815065,141.97,141.94,62.08]
[1763213080266,11.50815065,141.95,141.94,61.4]
[1763213081068,22.6512,141.99,141.94,63.79932296]
[1763213081253,9.78882769,141.98,141.95,0.68]
[1763213081570,12.20815065,141.98,141.95,0.68]
[1763213082043,10.48882769,141.98,141.95,0.68]
[1763213082448,20.86213642,142.05,141.97,1.71932296]
[1763213082658,20.86213642,142.05,142.02,1.71932296]
[1763213082862,2.41932296,142.07,142.02,1.71932296]
[1763213083049,9.78882769,142.06,142.03,0.72]
[1763213083263,9.78882769,142.06,142.03,2.43932296]
[1763213083463,2.42932296,142.09,142.04,1.71932296]
[1763213083668,2.62932296,142.11,142.06,1.71932296]
[1763213083866,25.28052296,142.11,142.06,1.71932296]
[1763213084167,25.28052296,142.11,142.07,2.43932296]
[1763213084168,0.2,142.11,142.07,2.43932296]
[1763213084468,0.2,142.11,142.08,1.71932296]
[1763213084774,9.98882769,142.11,142.08,0.72]
[1763213087851,0.2,142.11,142.08,2.43932296]
[1763213088378,0.2,142.11,142.09,0.72]
[1763213088779,0.2,142.11,142.09,62.12]
[1763213089680,9.98882769,142.11,142.09,61.4]
[1763213091257,9.98882769,142.11,142.09,62.12]
[1763213091886,9.98882769,142.11,142.09,61.4]
[1763213092577,0.71,142.1,142.09,61.4]
[1763213092777,10.49882769,142.1,142.09,61.4]
[1763213093875,12.21815065,142.1,142.09,61.4]
[1763213094054,10.49882769,142.1,142.09,61.4]
[1763213095961,13.17954251,142.1,142.09,61.4]
[1763213096162,13.17954251,142.1,142.04,62.12]
[1763213096362,9.78882769,142.07,142.04,61.4]
[1763213096892,9.78882769,142.07,142.04,62.12]